bitfinex/quotes_ETHUSD_20251230
["timestamp","ask_amount","ask_price","bid_price","bid_amount"]
[1767083119789,0.002,2979.6,2979.1,2.4378]
[1767083120008,2.3811,2979.6,2978.8,5.79484565]
[1767083120463,2.3811,2979.6,2978.8,0.03357056]
[1767083120959,2.3791,2979.3,2978.8,0.03357056]
[1767083121160,0.002,2979.4,2978.8,2.47137056]
[1767083121360,0.875,2979.8,2979.0,2.4378]
[1767083121770,2.3791,2979.7,2979.0,2.4378]
[1767083123994,2.3791,2979.7,2979.1,2.4378]
[1767083124691,0.875,2979.8,2979.1,2.4378]
[1767083125097,3.2541,2979.8,2979.1,2.4378]
[1767083125303,2.3791,2979.8,2979.1,2.70965065]
[1767083125514,0.002,2980.5,2979.6,2.4378]
[1767083125700,0.002,2980.5,2979.5,6.14913241]
[1767083125701,0.17730014,2981.5,2979.9,2.4378]
[1767083125998,0.17730014,2981.5,2979.4,0.05]
[1767083125999,2.3791,2980.9,2980.1,2.4378]
[1767083126368,2.3791,2980.7,2979.5,2.4378]
[1767083126572,0.0237035,2980.6,2979.5,2.4378]
[1767083126767,2.4028035,2980.6,2979.5,2.4378]
[1767083126968,2.4028035,2980.6,2979.7,2.4378]
[1767083128207,2.3791,2980.6,2979.7,2.4378]
[1767083128976,2.3791,2980.6,2979.6,2.4378]
[1767083129914,2.3791,2980.4,2979.6,2.4378]
[1767083130203,2.3791,2980.2,2979.3,2.4378]
[1767083130901,2.3791,2980.2,2979.5,2.4378]
[1767083131482,2.3791,2980.2,2979.2,2.4378]
[1767083131802,2.3791,2980.0,2979.2,2.4378]
[1767083131990,3.2531,2980.0,2979.2,2.4378]
[1767083132194,2.3791,2979.9,2979.2,2.4378]
[1767083132374,2.3791,2979.9,2979.2,2.7121219]
[1767083133125,2.3791,2979.9,2979.1,0.27185065]
[1767083133410,2.3791,2979.9,2978.9,2.4378]
[1767083135116,2.3791,2979.9,2978.8,5.82842614]
[1767083135304,2.3791,2979.9,2978.9,2.4378]
[1767083136012,2.3791,2979.9,2979.1,2.4378]
[1767083136384,2.3811,2979.9,2979.1,2.4378]
[1767083137012,2.3791,2979.7,2979.1,2.4378]
[1767083137208,2.3791,2979.7,2978.5,0.878]
[1767083137209,2.4028035,2979.7,2978.5,2.4378]
[1767083137411,2.3791,2979.4,2978.5,2.47137394]
[1767083137592,2.3791,2979.4,2978.5,2.4378]
[1767083138599,2.3791,2979.8,2978.7,2.4378]
[1767083138901,2.3791,2979.8,2978.9,2.4378]
[1767083139105,0.002,2979.9,2979.1,0.05]
[1767083139281,0.002,2981.0,2979.2,2.4378]
[1767083139282,0.0237035,2980.7,2979.2,2.4378]
[1767083139489,2.3791,2980.4,2979.2,2.4378]
[1767083139687,2.3791,2980.2,2979.2,2.4378]
[1767083140125,0.874,2980.1,2979.2,2.4378]
[1767083140436,6.73308791,2980.9,2978.8,1.12513728]
[1767083140437,3.2531,2980.6,2979.4,2.4378]
[1767083140638,2.4028035,2980.5,2979.4,2.4378]
[1767083141143,2.3791,2980.4,2979.4,2.4378]
[1767083141307,2.3791,2980.2,2979.4,2.4378]
[1767083142552,0.874,2980.3,2979.4,2.4378]
[1767083143247,2.3791,2980.8,2979.4,2.4378]
[1767083143454,0.874,2980.7,2979.6,2.4378]
[1767083143652,0.874,2980.7,2979.8,2.4378]
[1767083143934,2.3791,2980.8,2979.8,2.4378]
[1767083144139,0.874,2980.7,2979.8,2.4378]
[1767083144338,2.3791,2980.6,2979.8,2.4378]
[1767083145537,0.002,2981.0,2979.8,2.4378]
[1767083145538,0.874,2980.5,2979.8,2.4378]
[1767083145742,3.2531,2980.5,2979.8,2.4378]
[1767083145937,2.3791,2980.4,2979.8,2.4378]
[1767083146442,2.3578,2980.9,2979.8,2.4378]
[1767083146636,0.874,2980.8,2979.8,2.4378]
[1767083146840,2.3578,2980.7,2979.8,2.4378]
[1767083147408,2.3598,2981.0,2979.8,2.4378]
[1767083147636,1.11255035,2980.9,2979.8,2.68158]
[1767083147834,2.3598,2981.0,2979.8,2.68158]
[1767083147835,0.874,2980.8,2979.8,2.68158]
[1767083148340,0.874,2980.8,2979.8,6.03748523]
[1767083148540,0.874,2980.8,2979.9,2.4074]
[1767083149631,0.874,2980.9,2979.9,2.4074]
[1767083149832,0.874,2980.9,2980.1,2.4074]
[1767083150038,2.3598,2981.1,2980.1,2.4074]
[1767083150430,2.3578,2981.0,2980.1,2.4074]
[1767083150629,2.3815035,2981.0,2980.1,2.4074]
[1767083151011,2.3578,2980.8,2980.1,2.4074]
[1767083151211,0.23598,2980.7,2980.1,2.4074]
[1767083151442,2.3578,2980.8,2980.1,2.4074]
[1767083152344,0.874,2980.7,2980.1,2.4074]
[1767083153445,3.2318,2980.8,2980.1,2.4074]
[1767083154752,3.2318,2980.8,2980.2,0.03355479]
[1767083155764,3.2318,2980.8,2980.1,2.4074]
[1767083156064,3.55518,2980.8,2980.1,2.4074]
[1767083156359,3.55518,2980.8,2979.8,2.4194]
[1767083156360,2.366,2980.7,2979.8,2.4194]
[1767083157148,2.366,2980.7,2979.5,2.4194]
[1767083157952,2.366,2980.6,2979.5,2.4194]
[1767083158149,2.366,2980.4,2979.5,2.4194]
[1767083160450,0.32538,2980.8,2979.5,2.4194]
[1767083160747,0.874,2980.7,2979.5,2.4194]
[1767083160928,2.366,2980.6,2979.5,2.4194]
[1767083162149,2.366,2980.4,2979.5,2.4194]
[1767083162341,2.366,2980.4,2979.2,2.4194]
[1767083162559,2.6263035,2980.3,2979.2,2.4194]
[1767083162766,2.366,2980.1,2979.0,2.4204]
[1767083164546,0.2366,2980.3,2979.2,2.4194]
[1767083164547,0.874,2980.0,2979.2,2.4194]
[1767083165352,0.874,2980.2,2979.2,2.4194]
[1767083165543,0.874,2980.2,2979.3,2.4194]
[1767083165747,0.874,2980.2,2979.5,2.4194]
[1767083166073,0.874,2980.2,2979.4,2.4194]
[1767083166442,0.874,2980.2,2979.6,2.4194]
[1767083166642,0.874,2980.3,2979.6,2.4194]
[1767083167468,3.24,2980.3,2979.6,2.4194]
[1767083167658,0.324,2980.2,2979.6,2.4194]
[1767083167857,3.24,2980.3,2979.6,2.4194]
[1767083168659,0.874,2980.3,2979.8,2.4194]
[1767083169058,0.874,2980.3,2979.9,2.45295817]
[1767083169264,2.366,2980.6,2979.9,2.4194]
[1767083170181,2.3897035,2980.6,2979.5,0.03356267]
[1767083170369,2.366,2980.4,2979.6,2.4194]
[1767083170680,2.366,2980.4,2979.6,2.45296155]
[1767083173783,2.366,2980.4,2979.6,2.4194]
[1767083174380,2.366,2980.4,2979.9,0.001]
[1767083174584,3.24,2980.7,2979.9,2.4204]
[1767083174788,0.3242,2980.6,2979.9,2.4204]
[1767083175361,2.366,2980.6,2979.9,2.4204]
[1767083176654,2.3946,2980.8,2979.9,2.4204]
[1767083176885,0.874,2980.7,2979.9,2.4204]
[1767083177705,0.874,2980.7,2980.1,2.3027]
[1767083178610,3.2686,2980.8,2980.1,2.3027]
[1767083178812,3.59586,2980.8,2980.1,2.3027]
[1767083179113,0.32926,2980.8,2980.1,2.3027]
[1767083179290,0.002,2980.8,2980.1,2.3027]
[1767083179892,2.3946,2980.8,2980.1,2.3027]
[1767083182011,0.002,2980.8,2980.1,2.3027]
[1767083183212,0.002,2980.8,2980.1,2.33625592]
[1767083183584,0.002,2980.9,2980.2,2.3027]
[1767083183779,0.002,2980.9,2980.2,2.53297]
[1767083184513,0.002,2981.0,2980.3,2.3027]
[1767083187216,0.002,2981.0,2980.5,2.3027]
[1767083187393,0.002,2981.5,2980.5,2.3027]
[1767083187718,2.38861012,2981.6,2980.5,2.3027]
[1767083188021,2.38861012,2981.6,2980.7,2.3027]
[1767083188704,0.002,2981.8,2980.7,2.3027]
[1767083188923,2.3946,2981.7,2980.7,2.3027]
[1767083189108,2.3926,2981.5,2980.7,2.3027]
[1767083189298,2.3926,2981.3,2980.4,2.3027]
[1767083190725,2.3926,2981.1,2980.4,2.3027]
[1767083191022,2.3926,2980.9,2980.0,2.3027]
[1767083191222,2.3926,2980.9,2980.2,2.3027]
[1767083192123,2.3926,2980.9,2980.2,2.33625479]
[1767083192295,2.3926,2980.9,2980.2,2.3027]
[1767083194742,2.3926,2980.7,2979.9,2.3037]
[1767083198454,2.63423035,2980.7,2979.9,2.3037]
[1767083199252,0.0237035,2980.6,2979.9,2.3037]
[1767083199522,2.3926,2980.5,2979.9,2.3037]
[1767083200391,2.3926,2980.5,2979.9,0.001]
[1767083201976,2.3926,2980.5,2979.7,2.3027]
[1767083202144,2.3926,2980.3,2979.5,2.3027]
[1767083202343,2.3926,2980.3,2979.4,0.001]
[1767083202566,2.3926,2980.1,2979.4,0.001]
[1767083202882,2.3926,2980.0,2979.4,0.001]
[1767083203648,2.3926,2980.0,2979.1,2.3027]
[1767083203849,2.3926,2979.8,2979.0,0.001]
[1767083205366,2.4163035,2979.8,2979.0,0.001]
[1767083205585,2.4163035,2979.8,2978.7,2.3037]
[1767083207352,2.4701,2979.5,2978.7,2.3037]
[1767083207550,2.4701,2979.4,2978.7,0.001]
[1767083207790,2.4701,2978.9,2978.3,2.3671]
[1767083207993,2.4701,2978.9,2978.2,0.001]
[1767083209123,2.4701,2978.9,2977.9,2.3671]
[1767083209425,2.4701,2978.7,2977.9,2.3671]
[1767083211338,2.4701,2978.7,2978.3,0.001]
[1767083211639,2.4701,2978.7,2977.9,2.3671]
[1767083211848,2.4701,2978.7,2977.8,0.001]
[1767083211849,2.4938035,2978.6,2977.8,0.001]
[1767083212022,2.4938035,2978.6,2977.5,0.001]
[1767083212023,2.4701,2978.4,2977.5,0.001]
[1767083212610,2.4701,2978.3,2977.5,0.001]
[1767083213039,2.4701,2978.7,2977.8,4.92734695]
[1767083213243,2.4701,2978.6,2977.9,2.3671]
[1767083213612,2.4701,2978.6,2977.6,2.3671]
[1767083213929,2.4701,2978.4,2977.6,2.3671]
[1767083215728,2.4701,2978.4,2977.8,2.3671]
[1767083216412,0.875,2978.7,2977.8,2.3671]
[1767083216640,2.3555,2978.6,2978.0,2.4469]
[1767083218544,0.875,2978.7,2978.1,2.4469]
[1767083218841,3.2305,2978.7,2978.1,2.4469]
[1767083219222,0.0237035,2979.4,2978.1,2.4469]
[1767083219413,2.3555,2979.2,2978.3,2.4469]
[1767083219612,2.3555,2979.2,2977.8,0.03358183]
[1767083219839,2.3555,2979.0,2978.0,2.4469]
[1767083220050,2.3555,2979.0,2978.1,0.03357845]
[1767083220217,2.3555,2979.0,2978.1,2.48047845]
[1767083220417,3.2305,2979.3,2978.2,2.4469]
[1767083220632,3.2305,2979.3,2978.4,2.4469]
[1767083220836,3.2305,2979.3,2978.6,2.4469]
[1767083221014,2.3555,2979.3,2978.6,2.4469]
[1767083221440,2.3555,2979.6,2978.6,3.35728141]
[1767083221610,2.3555,2979.6,2978.7,2.4469]
[1767083221942,10.1337035,2980.6,2978.7,2.4469]
[1767083222124,2.3555,2980.3,2978.9,2.4469]
[1767083222332,2.3555,2980.3,2979.1,2.4469]
[1767083223045,3.2305,2980.5,2979.1,2.4469]
[1767083223409,3.2305,2980.5,2979.2,0.878]
[1767083223410,2.3555,2980.4,2979.2,0.878]
[1767083223636,2.3555,2980.4,2979.3,2.4469]
[1767083223838,2.67855,2980.4,2979.5,2.4469]
[1767083224351,2.7022535,2980.4,2979.5,2.4469]
[1767083225744,2.67855,2980.4,2979.5,2.4469]
[1767083226042,2.3555,2980.3,2978.8,2.4469]
[1767083226243,3.70205725,2980.4,2978.8,3.02730666]
[1767083226244,2.3555,2979.9,2978.8,3.02730666]
[1767083226443,2.3555,2979.8,2978.8,3.02730666]
[1767083226637,2.3555,2979.8,2978.8,2.4469]
[1767083226838,2.3792035,2979.8,2978.5,0.878]
[1767083227239,2.3555,2979.8,2978.5,6.68221348]
[1767083227443,2.3555,2979.8,2978.6,2.4469]
[1767083227770,2.3555,2979.6,2978.6,3.1151369]
[1767083228433,2.3555,2979.6,2978.7,2.4469]
[1767083229129,2.3555,2979.6,2978.7,2.48047169]
[1767083230024,2.3555,2979.6,2978.7,2.4469]
[1767083230641,0.0237035,2979.5,2978.5,0.03357394]
[1767083230827,2.3555,2979.3,2978.3,2.4469]
[1767083231038,2.3792035,2979.3,2978.3,2.4469]
[1767083231556,2.3555,2979.3,2978.3,2.4469]
[1767083233032,2.3555,2979.3,2978.0,2.48047958]
[1767083233217,2.3555,2979.3,2978.0,2.4469]
[1767083233422,2.3555,2979.1,2978.0,2.69504818]
[1767083233819,2.3555,2979.1,2978.0,2.4469]
[1767083234271,2.3555,2978.9,2977.8,2.4479]
[1767083234480,2.3555,2978.8,2977.8,2.4479]
[1767083236244,0.875,2978.9,2977.9,2.4456]
[1767083236443,0.875,2978.9,2978.1,2.4456]
[1767083236668,2.3502,2979.1,2978.3,2.4456]
[1767083237363,2.3502,2979.1,2978.5,2.4456]
[1767083238449,0.875,2979.3,2978.7,2.4456]
[1767083238784,0.875,2979.3,2978.8,2.47917056]
[1767083239085,0.875,2979.3,2978.8,2.4456]
[1767083239851,2.3502,2979.5,2978.8,2.4456]
[1767083240295,2.3502,2979.5,2978.9,2.47916943]
[1767083240484,2.3502,2979.5,2978.9,2.4456]
[1767083244472,0.875,2979.7,2978.9,2.69016]
[1767083244677,2.3502,2979.6,2978.9,2.4456]
[1767083247474,2.3502,2979.6,2978.9,2.4466]
[1767083248014,2.3522,2979.6,2978.9,2.4466]
[1767083248212,0.32272,2979.5,2978.9,2.4466]
[1767083248384,2.3502,2979.5,2978.9,2.4466]
[1767083254195,2.3502,2979.5,2978.9,0.001]
[1767083255381,2.3502,2979.5,2978.9,2.4466]
[1767083255814,4.92242219,2979.1,2978.5,2.4456]
[1767083256020,4.92242219,2979.1,2978.1,1.34]
[1767083256021,2.3502,2978.8,2978.1,1.34]
[1767083256177,0.2441,2978.6,2977.7,3.51932219]
[1767083257029,0.2441,2978.6,2977.5,0.001]
[1767083257030,4.92242219,2978.5,2977.5,0.001]
[1767083257233,4.92242219,2978.5,2977.5,2.4466]
[1767083257434,4.92242219,2978.5,2977.7,0.001]
[1767083261594,0.875,2978.6,2977.7,0.001]
[1767083261827,0.65483879,2978.5,2977.7,2.4466]
[1767083262833,5.57726098,2978.5,2977.7,2.4466]
[1767083263125,4.92242219,2978.3,2977.7,0.001]
[1767083263327,3.35750738,2978.4,2977.7,0.001]
[1767083263530,4.92242219,2978.0,2977.7,0.001]
[1767083263700,0.49224222,2977.9,2977.7,0.001]
[1767083263900,0.875,2978.1,2977.7,2.4466]
[1767083264830,5.79742219,2978.1,2977.7,0.001]
[1767083266230,5.79742219,2978.1,2977.5,0.001]
[1767083266231,4.92242219,2977.9,2977.5,0.001]
[1767083266610,4.92242219,2977.5,2977.1,0.001]
[1767083267304,4.92242219,2977.7,2977.1,0.001]
[1767083267532,0.49461257,2977.6,2977.1,0.001]
[1767083268621,1.36961257,2977.6,2977.1,0.001]
[1767083270438,0.49461257,2977.6,2977.1,0.001]
[1767083270631,0.875,2977.7,2977.1,0.001]
[1767083272138,0.8987035,2977.7,2977.1,0.001]
[1767083272441,0.0237035,2977.3,2976.8,0.001]
[1767083272812,0.0237035,2977.3,2977.0,0.001]
[1767083274344,0.875,2977.2,2977.0,0.001]
[1767083274952,0.875,2977.2,2976.3,2.4642]
[1767083275122,1.30074048,2977.2,2976.0,2.4642]
[1767083275320,0.0237035,2977.1,2976.0,2.4642]
[1767083275729,0.0237035,2977.1,2976.2,2.4642]
[1767083276041,1.30074048,2977.2,2976.3,2.4642]
[1767083277921,0.875,2977.2,2976.3,2.4642]
[1767083278747,0.875,2977.2,2976.5,2.4657]
[1767083279015,0.0237035,2977.9,2976.6,2.49929537]
[1767083279016,0.876,2977.7,2976.6,2.49929537]
[1767083279239,0.0237035,2978.0,2976.6,2.4657]
[1767083279434,0.876,2977.9,2976.6,2.4657]
[1767083279645,0.876,2977.9,2976.8,2.4647]
[1767083279832,0.876,2977.9,2976.7,0.28362389]
[1767083279833,0.002,2978.6,2977.0,2.4647]
[1767083280041,0.0237035,2978.3,2977.0,2.4647]
[1767083281050,0.0237035,2978.1,2977.0,2.4647]
[1767083281826,0.0237035,2978.3,2977.0,2.4647]
[1767083282026,0.876,2978.2,2977.2,2.4647]
[1767083283261,0.002,2978.6,2977.2,2.4647]
[1767083283462,0.002,2978.6,2977.3,2.4647]
[1767083284179,0.002,2978.6,2977.5,2.4647]
[1767083284337,0.878,2979.1,2977.7,2.4647]
[1767083284536,0.878,2979.1,2977.9,2.4647]
[1767083284772,0.002,2978.7,2977.9,2.4647]
[1767083284939,0.0237035,2978.8,2977.2,2.4647]
[1767083284940,0.002,2978.4,2977.2,2.4647]
[1767083285144,0.002,2978.4,2976.6,0.001]
[1767083285145,0.002,2978.4,2977.4,2.4647]
[1767083285464,0.002,2978.2,2977.4,2.4647]
[1767083286440,0.002,2977.8,2976.6,2.4657]
[1767083286768,0.002,2977.4,2976.6,2.4657]
[1767083287735,0.002,2977.4,2976.5,0.001]
[1767083288155,3.35863505,2977.4,2976.5,0.001]
[1767083288468,0.33823386,2977.3,2976.5,0.001]
[1767083288773,6.39905,2977.7,2976.6,2.4647]
[1767083288975,0.002,2978.2,2976.8,2.4647]
[1767083289186,0.876,2978.0,2977.0,2.4647]
[1767083289474,0.0237035,2977.8,2976.6,2.4647]
[1767083289671,0.0237035,2977.6,2976.6,2.4647]
[1767083289878,0.0237035,2977.8,2976.6,2.4647]
[1767083290410,3.38189444,2977.8,2976.6,2.71137]
[1767083290542,3.38189444,2977.8,2976.6,2.4647]
[1767083290543,0.0237035,2977.6,2976.6,2.4647]
[1767083290864,0.0237035,2977.4,2976.5,0.001]
[1767083291764,0.0237035,2977.4,2976.6,2.4647]
[1767083291937,0.8997035,2977.4,2976.6,2.4647]
[1767083292463,0.8997035,2977.4,2976.5,0.001]
[1767083292881,0.876,2977.4,2976.5,0.001]
[1767083293866,0.876,2977.4,2976.5,2.4657]
[1767083295374,0.8997035,2977.4,2976.5,2.4657]
[1767083295579,0.876,2977.4,2976.5,2.4657]
[1767083295750,1.30181176,2977.4,2976.5,2.4657]
[1767083296780,1.30181176,2977.4,2976.6,0.03359537]
[1767083297076,0.876,2977.4,2976.7,2.4335]
[1767083297450,0.876,2977.4,2976.9,2.4335]
[1767083298055,0.002,2977.7,2977.0,0.03359086]
[1767083298254,0.002,2977.7,2977.1,2.4335]
[1767083298459,0.002,2977.7,2976.5,0.88]
[1767083298460,0.876,2978.1,2977.3,2.4335]
[1767083299078,0.002,2978.2,2977.3,2.4335]
[1767083300179,0.002,2978.1,2977.3,2.4335]
[1767083303189,0.002,2978.2,2977.3,2.4335]
[1767083303393,0.002,2978.1,2977.3,2.4335]
[1767083304858,0.002,2978.1,2976.9,2.4335]
[1767083305061,0.002,2978.1,2976.9,2.76475]
[1767083305778,0.002,2978.1,2977.3,2.4345]
[1767083305979,0.002,2978.0,2977.3,2.4345]
[1767083308591,0.002,2978.1,2977.3,2.4345]
[1767083308774,6.30601011,2978.6,2977.4,2.4335]
[1767083308976,6.30601011,2978.6,2977.6,2.4335]
[1767083309501,0.002,2978.5,2977.6,2.4335]
[1767083314285,0.002,2978.4,2977.6,2.4335]
[1767083320279,0.002,2978.4,2977.6,2.3835]
[1767083320494,0.002,2978.4,2977.6,2.742885]
[1767083321085,0.002,2978.4,2977.6,2.3835]
[1767083325099,0.002,2978.4,2977.5,2.4345]
[1767083328399,0.002,2978.5,2977.5,2.4345]
[1767083328719,0.054,2978.5,2977.7,2.4152]
[1767083333613,0.054,2978.5,2977.5,0.001]
[1767083333815,0.054,2978.5,2977.6,0.73420411]
[1767083333998,0.054,2978.5,2977.6,0.68220411]
[1767083334519,0.054,2978.5,2977.6,5.6081262]
[1767083335423,0.054,2978.5,2977.6,0.68220411]
[1767083335718,0.054,2978.5,2977.6,4.92592209]
[1767083336096,0.054,2978.5,2977.7,2.4264]
[1767083338416,4.92592209,2978.4,2977.7,2.4264]
[1767083341427,4.92592209,2978.3,2977.5,0.001]
[1767083342216,4.92592209,2978.3,2977.5,2.4274]
[1767083342417,5.75682522,2978.3,2977.5,2.4274]
[1767083342603,0.83090313,2978.3,2977.5,2.4274]
[1767083345726,0.002,2978.5,2977.6,2.45998409]
[1767083346030,0.002,2978.5,2977.8,2.4264]
[1767083347666,4.92792209,2978.5,2977.8,2.4264]
[1767083348258,4.92592209,2978.3,2977.8,2.4264]
[1767083348426,0.49259221,2978.2,2977.8,2.4264]
[1767083349061,0.49259221,2978.2,2977.5,2.4274]
[1767083350630,4.92792209,2978.5,2977.6,0.03358409]
[1767083350852,0.002,2978.5,2977.7,2.45998296]
[1767083351056,0.002,2978.5,2977.7,2.4264]
[1767083351662,0.002,2978.5,2977.7,2.45998296]
[1767083351869,0.002,2978.5,2977.7,2.4264]
[1767083352070,0.002,2978.5,2977.8,2.4264]
[1767083352730,0.002,2978.5,2977.8,4.92592209]
[1767083352930,0.002,2978.5,2977.9,2.4264]
[1767083353157,4.92792209,2978.5,2977.9,2.4264]
[1767083353330,4.92792209,2978.5,2977.5,0.001]
[1767083353526,0.49299221,2978.4,2977.6,2.4264]
[1767083353763,4.92592209,2978.3,2977.6,2.4264]
[1767083354259,5.4189143,2978.4,2977.6,2.4264]
[1767083359373,8.77642672,2978.4,2977.6,2.4264]
[1767083359875,4.92592209,2977.8,2977.3,0.001]
[1767083360364,4.92592209,2978.0,2977.3,0.001]
[1767083361870,0.87784267,2978.3,2977.4,4.92592209]
[1767083362082,0.878,2978.5,2977.7,2.3992]
[1767083362294,4.23539522,2978.5,2977.7,2.3992]
[1767083362494,4.92592209,2978.4,2977.7,2.3992]
[1767083364080,8.28345002,2978.4,2977.7,2.3992]
[1767083364268,8.28345002,2978.4,2977.3,0.001]
[1767083364596,0.916145,2978.3,2977.4,2.3992]
[1767083366463,0.002,2978.0,2977.4,2.3992]
[1767083371576,0.002,2978.0,2977.6,2.3992]
[1767083371886,0.002,2978.4,2977.7,0.03358296]
[1767083372182,0.002,2978.4,2977.8,2.3992]
[1767083372481,0.002,2978.4,2977.9,2.3992]
[1767083373384,0.002,2978.5,2977.9,2.3992]
[1767083374099,0.002,2978.4,2977.9,2.3992]
[1767083374255,0.002,2978.3,2977.5,2.3992]
[1767083374459,0.002,2978.1,2977.5,2.3992]
[1767083375087,0.002,2977.9,2977.5,2.3992]
[1767083376186,0.002,2977.9,2977.3,0.001]
[1767083376986,0.002,2977.7,2977.2,2.3992]
[1767083377194,0.0237035,2976.9,2976.4,0.001]
[1767083377393,0.16031013,2975.8,2975.2,0.001]
[1767083377559,0.15032026,2975.8,2975.3,2.3992]
[1767083377760,2.026e-05,2975.8,2975.3,2.3992]
[1767083377963,0.876,2976.0,2975.5,2.3992]
[1767083378186,5.80192209,2976.0,2975.5,2.3992]
[1767083378369,5.80192209,2976.0,2975.2,0.001]
[1767083378370,1.785029,2975.5,2975.2,0.001]
[1767083379458,3.35953772,2976.6,2975.3,2.3992]
[1767083379658,3.35953772,2976.6,2975.5,2.3992]
[1767083379659,3.3547,2976.5,2975.5,2.3992]
[1767083379865,2.4787,2976.3,2975.5,2.3992]
[1767083380169,2.4787,2976.4,2975.5,2.3992]
[1767083380391,2.4787,2976.3,2975.7,2.3992]
[1767083382167,2.4787,2976.2,2975.7,2.3992]
[1767083384800,2.4787,2976.1,2975.6,0.001]
[1767083385008,2.4787,2976.0,2975.4,2.3992]
[1767083385194,2.4787,2976.3,2975.5,2.43280779]
[1767083385399,0.876,2976.1,2975.5,2.43280779]
[1767083385595,0.876,2976.2,2975.5,2.43280779]
[1767083385789,2.4787,2976.1,2975.5,2.3992]
[1767083386104,2.4787,2976.1,2975.2,2.2694]
[1767083386475,2.2643,2976.0,2975.2,2.2694]
[1767083387304,2.2643,2976.2,2975.2,2.30301118]
[1767083387509,3.1403,2976.2,2975.2,2.30301118]
[1767083387817,3.1403,2976.2,2975.4,2.2684]
[1767083387982,2.2643,2976.1,2975.4,2.2684]
[1767083389478,2.2643,2976.0,2975.2,2.2694]
[1767083391515,2.2643,2976.0,2975.4,0.001]
[1767083391682,0.03360435,2975.9,2975.4,0.001]
[1767083391890,2.2643,2975.8,2975.4,0.001]
[1767083392814,3.17390435,2976.1,2975.5,2.2684]
[1767083392988,2.29790435,2976.1,2975.5,2.49534]
[1767083393812,2.29790435,2976.1,2975.5,2.2684]
[1767083394882,2.2643,2976.0,2975.4,0.001]
[1767083395111,0.876,2976.2,2975.4,2.2694]
[1767083395112,2.29790435,2975.9,2975.4,2.2694]
[1767083395685,0.03360435,2975.9,2975.4,2.2694]
[1767083395886,2.29790435,2976.1,2975.4,2.49644]
[1767083396087,0.876,2976.2,2975.6,2.3483]
[1767083396288,2.4169,2976.3,2975.6,2.3483]
[1767083396510,2.4169,2976.3,2975.7,2.38190553]
[1767083397914,3.35960496,2976.6,2975.7,2.3483]
[1767083397915,2.45050435,2976.5,2975.7,2.3483]
[1767083399023,2.45050435,2976.5,2975.7,2.58313]
[1767083399320,2.4169,2976.5,2975.7,2.58313]
[1767083399708,2.4169,2976.5,2975.9,2.3483]
[1767083399904,0.876,2976.7,2975.9,2.3483]
[1767083399905,0.03360435,2976.4,2975.9,2.3483]
[1767083400119,2.45050435,2976.5,2975.9,2.3483]
[1767083400999,2.45050435,2976.5,2975.9,2.606613]
[1767083401322,0.0237035,2975.8,2975.2,0.001]
[1767083401536,2.4169,2975.7,2975.1,0.03361231]
[1767083401840,5.77684292,2976.3,2975.3,2.3483]
[1767083401990,5.77684292,2976.3,2975.4,2.3483]
[1767083401991,2.4169,2976.1,2975.4,2.3483]
[1767083402195,2.45050435,2976.0,2975.4,2.3483]
[1767083402894,2.45050435,2976.0,2975.1,0.23819123]
[1767083402895,2.4169,2975.8,2974.9,2.3483]
[1767083403093,2.4169,2975.8,2975.1,2.3483]
[1767083404026,2.4169,2975.7,2975.1,2.3483]
[1767083404398,2.4169,2975.7,2974.8,2.3483]
[1767083405195,0.03360435,2975.8,2974.8,2.3483]
[1767083405399,2.45050435,2975.9,2975.0,2.3483]
[1767083405595,0.24505044,2975.8,2975.2,2.3483]
[1767083406399,2.4169,2975.7,2974.9,2.3483]
[1767083406833,2.4169,2975.5,2974.6,2.2983]
[1767083407128,0.0237035,2975.6,2974.6,2.2983]
[1767083407129,2.4169,2975.3,2974.6,2.2983]
[1767083407336,2.4169,2975.3,2974.5,0.001]
[1767083407628,2.4169,2975.1,2974.5,0.001]
[1767083407833,2.4169,2975.1,2974.5,2.3493]
[1767083408001,2.45050435,2975.7,2974.5,2.3493]
[1767083408203,2.4169,2975.5,2974.5,2.3493]
[1767083409818,0.0237035,2975.4,2974.5,2.3493]
[1767083410019,2.4169,2975.3,2974.5,2.3493]
[1767083410408,2.4169,2975.3,2974.5,0.001]
[1767083410609,2.4169,2975.3,2974.3,0.91262135]
[1767083411007,2.40691013,2975.3,2974.5,2.3483]
[1767083411335,2.39694048,2975.3,2974.5,2.38191909]
[1767083411517,2.39694048,2975.3,2974.6,0.23819191]
[1767083412437,2.39694048,2975.3,2974.2,0.001]
[1767083412635,2.39694048,2975.3,2974.3,0.88]
[1767083413636,2.4169,2975.2,2973.9,3.2283]
[1767083414041,2.4169,2975.2,2974.0,2.3483]
[1767083414241,3.3610335,2975.3,2974.2,2.3483]
[1767083414539,2.4169,2975.2,2974.2,2.3483]
[1767083414837,3.36113595,2975.2,2974.2,2.3483]
[1767083415037,2.4169,2975.1,2974.2,2.3483]
[1767083415413,2.4406035,2975.1,2973.9,2.3483]
[1767083415610,2.4169,2974.9,2973.9,2.3483]
[1767083415811,2.4677,2974.7,2973.9,2.3483]
[1767083416112,0.0237035,2974.8,2973.4,0.001]
[1767083416113,2.4677,2974.5,2973.4,0.001]
[1767083416327,2.4677,2974.3,2973.5,2.4626]